[Event "Latvijas 2022. gada jauniešu čempionāta fināls"]
[Site "Riga, Latvia"]
[Date "2022.06.14"]
[Round "5.22"]
[White "Petrovs, Renars"]
[Black "Jonins, Dmitrijs"]
[Result "0-1"]
[TimeControl "3600+30"]
[WhiteElo "1327"]
[BlackElo "1503"]

1. d4 {[%clk 01:00:58]} {[%emt 00:00:01]} d5 {[%clk 01:00:57]} {[%emt
00:00:03]} 2. Bf4 {[%clk 01:01:23]} {[%emt 00:00:06]} Nf6 {[%clk 01:00:58]}
{[%emt 00:00:29]} 3. e3 {[%clk 01:01:22]} {[%emt 00:00:30]} c5 {[%clk
01:00:33]} {[%emt 00:00:56]} 4. c3 {[%clk 01:00:33]} {[%emt 00:01:19]} Nc6
{[%clk 00:58:54]} {[%emt 00:02:09]} 5. dxc5 {[%clk 00:54:09]} {[%emt 00:06:54]}
e5 {[%clk 00:48:40]} {[%emt 00:10:44]} 6. Bg3 {[%clk 00:54:20]} {[%emt
00:00:18]} Bxc5 {[%clk 00:48:20]} {[%emt 00:00:50]} 7. Nf3 {[%clk 00:53:46]}
{[%emt 00:01:04]} Qe7 {[%clk 00:44:52]} {[%emt 00:03:59]} 8. Bb5 {[%clk
00:53:43]} {[%emt 00:00:33]} Bd6 {[%clk 00:44:51]} {[%emt 00:00:30]} 9. h3
{[%clk 00:52:38]} {[%emt 00:01:35]} O-O {[%clk 00:44:47]} {[%emt 00:00:34]} 10.
O-O {[%clk 00:52:43]} {[%emt 00:00:24]} a6 {[%clk 00:44:34]} {[%emt 00:00:44]}
11. Ba4 {[%clk 00:53:00]} {[%emt 00:00:14]} b5 {[%clk 00:42:18]} {[%emt
00:02:47]} 12. Bb3 {[%clk 00:53:23]} {[%emt 00:00:06]} Be6 {[%clk 00:42:28]}
{[%emt 00:00:20]} 13. Bh4 {[%clk 00:53:14]} {[%emt 00:00:38]} Rad8 {[%clk
00:35:12]} {[%emt 00:07:45]} 14. Qc2 {[%clk 00:38:56]} {[%emt 00:14:46]} e4
{[%clk 00:32:22]} {[%emt 00:03:24]} 15. Nd4 {[%clk 00:34:00]} {[%emt 00:05:25]}
Nxd4 {[%clk 00:32:28]} {[%emt 00:00:24]} 16. cxd4 {[%clk 00:34:02]} {[%emt
00:00:28]} Bf5 {[%clk 00:31:55]} {[%emt 00:01:03]} 17. Bxd5 {[%clk 00:29:05]}
{[%emt 00:05:27]} Bb8 {[%clk 00:25:29]} {[%emt 00:06:56]} 18. Bxf6 {[%clk
00:22:03]} {[%emt 00:07:33]} gxf6 {[%clk 00:25:16]} {[%emt 00:00:42]} 19. Nc3
{[%clk 00:21:05]} {[%emt 00:01:28]} Qc7 {[%clk 00:25:16]} {[%emt 00:00:30]} 20.
g3 {[%clk 00:21:17]} {[%emt 00:00:18]} Rxd5 {[%clk 00:25:08]} {[%emt 00:00:39]}
21. Qe2 {[%clk 00:21:19]} {[%emt 00:00:27]} Rdd8 {[%clk 00:24:54]} {[%emt
00:00:44]} 22. Qh5 {[%clk 00:21:07]} {[%emt 00:00:43]} Bg6 {[%clk 00:23:46]}
{[%emt 00:01:36]} 23. Qh6 {[%clk 00:19:50]} {[%emt 00:01:48]} Qd7 {[%clk
00:21:04]} {[%emt 00:03:12]} 24. Kg2 {[%clk 00:18:19]} {[%emt 00:02:01]} Qf5
{[%clk 00:18:16]} {[%emt 00:03:19]} 25. h4 {[%clk 00:18:20]} {[%emt 00:00:28]}
Qg4 {[%clk 00:13:38]} {[%emt 00:05:08]} 26. Rh1 {[%clk 00:17:19]} {[%emt
00:01:30]} Qf3+ {[%clk 00:08:26]} {[%emt 00:05:42]} 27. Kg1 {[%clk 00:17:06]}
{[%emt 00:00:44]} Qh5 {[%clk 00:06:24]} {[%emt 00:02:33]} 28. Qxh5 {[%clk
00:17:22]} {[%emt 00:00:14]} Bxh5 {[%clk 00:06:50]} {[%emt 00:00:03]} 29. g4
{[%clk 00:16:56]} {[%emt 00:00:55]} Bxg4 {[%clk 00:06:12]} {[%emt 00:01:09]} 30.
Nxe4 {[%clk 00:17:10]} {[%emt 00:00:16]} Bf3 {[%clk 00:06:12]} {[%emt
00:00:30]} 31. Nxf6+ {[%clk 00:17:26]} {[%emt 00:00:15]} Kg7 {[%clk 00:06:18]}
{[%emt 00:00:17]} 32. Rh3 {[%clk 00:17:47]} {[%emt 00:00:15]} Kxf6 {[%clk
00:06:19]} {[%emt 00:00:29]} 33. Rxf3+ {[%clk 00:18:09]} {[%emt 00:00:08]} Ke6
{[%clk 00:06:17]} {[%emt 00:00:26]} 34. Kf1 {[%clk 00:16:04]} {[%emt 00:02:41]}
Rc8 {[%clk 00:06:11]} {[%emt 00:00:37]} 35. Ke2 {[%clk 00:16:15]} {[%emt
00:00:19]} f5 {[%clk 00:05:18]} {[%emt 00:01:22]} 36. Kd3 {[%clk 00:16:11]}
{[%emt 00:00:34]} Rg8 {[%clk 00:04:31]} {[%emt 00:01:17]} 37. Rh1 {[%clk
00:15:01]} {[%emt 00:01:40]} h5 {[%clk 00:04:15]} {[%emt 00:00:45]} 38. a4
{[%clk 00:14:07]} {[%emt 00:01:25]} b4 {[%clk 00:04:24]} {[%emt 00:00:20]} 39.
Rfh3 {[%clk 00:12:25]} {[%emt 00:02:13]} b3 {[%clk 00:04:02]} {[%emt 00:00:53]}
40. Rd1 {[%clk 00:12:22]} {[%emt 00:00:32]} Rg2 {[%clk 00:03:12]} {[%emt
00:01:19]} 41. Rd2 {[%clk 00:12:21]} {[%emt 00:00:31]} Bd6 {[%clk 00:01:52]}
{[%emt 00:01:51]} 42. e4 {[%clk 00:11:33]} {[%emt 00:01:19]} fxe4+ {[%clk
00:01:55]} {[%emt 00:00:27]} 43. Kxe4 {[%clk 00:11:41]} {[%emt 00:00:22]} Rc2
{[%clk 00:02:18]} {[%emt 00:00:06]} 44. d5+ {[%clk 00:10:04]} {[%emt 00:02:07]}
Kd7 {[%clk 00:02:11]} {[%emt 00:00:35]} 45. Rdd3 {[%clk 00:08:16]} {[%emt
00:02:20]} Rg4+ {[%clk 00:02:05]} {[%emt 00:00:35]} 46. Kf5 {[%clk 00:07:45]}
{[%emt 00:01:02]} Rxf2+ {[%clk 00:02:12]} {[%emt 00:00:21]} 47. Rdf3 {[%clk
00:08:11]} {[%emt 00:00:05]} Rxb2 {[%clk 00:02:17]} {[%emt 00:00:26]} 48. Rxb3
{[%clk 00:08:29]} {[%emt 00:00:12]} Rxb3 {[%clk 00:02:16]} {[%emt 00:00:32]} 49.
Rxb3 {[%clk 00:08:54]} {[%emt 00:00:04]} Rxh4 {[%clk 00:02:11]} {[%emt
00:00:35]} 50. Rb7+ {[%clk 00:07:59]} {[%emt 00:01:25]} Bc7 {[%clk 00:02:19]}
{[%emt 00:00:23]} 51. Kg5 {[%clk 00:07:49]} {[%emt 00:00:39]} Rxa4 {[%clk
00:02:35]} {[%emt 00:00:15]} 52. Kxh5 {[%clk 00:08:13]} {[%emt 00:00:05]} Rd4
{[%clk 00:02:40]} {[%emt 00:00:25]} 53. Kg5 {[%clk 00:08:09]} {[%emt 00:00:34]}
Rxd5+ {[%clk 00:02:56]} {[%emt 00:00:14]} 54. Kg4 {[%clk 00:08:27]} {[%emt
00:00:12]} Rd6 {[%clk 00:02:15]} {[%emt 00:01:11]} 55. Rb2 {[%clk 00:08:38]}
{[%emt 00:00:20]} a5 {[%clk 00:02:24]} {[%emt 00:00:20]} 56. Kf3 {[%clk
00:08:56]} {[%emt 00:00:12]} Re6 {[%clk 00:02:32]} {[%emt 00:00:19]} 57. Rc2
{[%clk 00:09:16]} {[%emt 00:00:14]} Bd6 {[%clk 00:02:13]} {[%emt 00:00:48]} 58.
Rc4 {[%clk 00:09:33]} {[%emt 00:00:13]} Bb4 {[%clk 00:02:25]} {[%emt 00:00:17]}
59. Kf2 {[%clk 00:09:46]} {[%emt 00:00:18]} Kd6 {[%clk 00:02:45]} {[%emt
00:00:08]} 60. Rc8 {[%clk 00:09:57]} {[%emt 00:00:21]} a4 {[%clk 00:02:44]}
{[%emt 00:00:30]} 0-1

[Event "Latvijas 2022. gada jauniešu čempionāta fināls"]
[Site "Riga, Latvia"]
[Date "2022.06.14"]
[Round "5.23"]
[White "Mierins, Emils Janis"]
[Black "Steinbergs, Raivo"]
[Result "1-0"]
[TimeControl "3600+30"]
[WhiteElo "2016"]
[BlackElo "1397"]

1. e4 {[%clk 00:58:14]} {[%emt 00:02:45]} c5 {[%clk 01:00:53]} {[%emt
00:00:08]} 2. Nf3 {[%clk 00:58:27]} {[%emt 00:00:16]} Nc6 {[%clk 01:01:14]}
{[%emt 00:00:10]} 3. d4 {[%clk 00:58:52]} {[%emt 00:00:04]} cxd4 {[%clk
01:01:38]} {[%emt 00:00:08]} 4. Nxd4 {[%clk 00:59:15]} {[%emt 00:00:05]} e5
{[%clk 01:02:00]} {[%emt 00:00:08]} 5. Nb5 {[%clk 00:59:33]} {[%emt 00:00:12]}
d6 {[%clk 01:02:16]} {[%emt 00:00:15]} 6. N1c3 {[%clk 00:59:57]} {[%emt
00:00:05]} a6 {[%clk 01:02:39]} {[%emt 00:00:08]} 7. Na3 {[%clk 00:58:39]}
{[%emt 00:01:47]} b5 {[%clk 01:02:48]} {[%emt 00:00:21]} 8. Nd5 {[%clk
00:59:04]} {[%emt 00:00:05]} Nf6 {[%clk 01:03:08]} {[%emt 00:00:10]} 9. Bg5
{[%clk 00:59:27]} {[%emt 00:00:06]} Be7 {[%clk 01:03:31]} {[%emt 00:00:08]} 10.
Bxf6 {[%clk 00:59:50]} {[%emt 00:00:07]} Bxf6 {[%clk 01:03:09]} {[%emt
00:00:52]} 11. c4 {[%clk 01:00:14]} {[%emt 00:00:05]} b4 {[%clk 00:59:50]}
{[%emt 00:03:50]} 12. Nc2 {[%clk 01:00:34]} {[%emt 00:00:10]} a5 {[%clk
01:00:15]} {[%emt 00:00:05]} 13. g3 {[%clk 01:01:00]} {[%emt 00:00:04]} O-O
{[%clk 00:57:59]} {[%emt 00:02:46]} 14. h4 {[%clk 01:01:24]} {[%emt 00:00:06]}
Rb8 {[%clk 00:55:18]} {[%emt 00:03:12]} 15. b3 {[%clk 01:00:46]} {[%emt
00:01:07]} Bb7 {[%clk 00:55:04]} {[%emt 00:00:44]} 16. Bh3 {[%clk 01:00:23]}
{[%emt 00:00:53]} Re8 {[%clk 00:53:26]} {[%emt 00:02:06]} 17. O-O {[%clk
01:00:26]} {[%emt 00:00:28]} Nd4 {[%clk 00:53:24]} {[%emt 00:00:33]} 18. Nce3
{[%clk 00:59:46]} {[%emt 00:01:10]} h6 {[%clk 00:48:46]} {[%emt 00:05:09]} 19.
Qd3 {[%clk 00:51:23]} {[%emt 00:08:52]} Bxd5 {[%clk 00:42:17]} {[%emt
00:07:00]} 20. Nxd5 {[%clk 00:51:34]} {[%emt 00:00:17]} a4 {[%clk 00:39:55]}
{[%emt 00:02:54]} 21. Kg2 {[%clk 00:50:47]} {[%emt 00:01:16]} Kh8 {[%clk
00:38:24]} {[%emt 00:02:01]} 22. bxa4 {[%clk 00:43:59]} {[%emt 00:07:19]} b3
{[%clk 00:38:47]} {[%emt 00:00:07]} 23. Nc3 {[%clk 00:44:05]} {[%emt 00:00:22]}
b2 {[%clk 00:32:26]} {[%emt 00:06:53]} 24. Rab1 {[%clk 00:43:51]} {[%emt
00:00:44]} g5 {[%clk 00:30:18]} {[%emt 00:02:38]} 25. h5 {[%clk 00:41:55]}
{[%emt 00:02:25]} Rb4 {[%clk 00:26:11]} {[%emt 00:04:37]} 26. Nd5 {[%clk
00:36:53]} {[%emt 00:05:32]} Rb8 {[%clk 00:26:33]} {[%emt 00:00:07]} 27. Qd2
{[%clk 00:35:57]} {[%emt 00:01:26]} Bg7 {[%clk 00:22:09]} {[%emt 00:04:55]} 28.
Rxb2 {[%clk 00:34:45]} {[%emt 00:01:41]} Rxb2 {[%clk 00:22:33]} {[%emt
00:00:07]} 29. Qxb2 {[%clk 00:35:07]} {[%emt 00:00:09]} Qa5 {[%clk 00:21:56]}
{[%emt 00:01:06]} 30. Bd7 {[%clk 00:32:42]} {[%emt 00:02:54]} Rf8 {[%clk
00:21:04]} {[%emt 00:01:21]} 31. Qb4 {[%clk 00:28:00]} {[%emt 00:05:15]} Qa7
{[%clk 00:20:11]} {[%emt 00:01:18]} 32. Bb5 {[%clk 00:27:49]} {[%emt 00:00:45]}
Qb8 {[%clk 00:17:30]} {[%emt 00:03:05]} 33. Qa5 {[%clk 00:21:39]} {[%emt
00:06:47]} Qc8 {[%clk 00:16:21]} {[%emt 00:01:36]} 34. Ne3 {[%clk 00:19:57]}
{[%emt 00:02:15]} f5 {[%clk 00:14:47]} {[%emt 00:02:04]} 35. exf5 {[%clk
00:19:59]} {[%emt 00:00:28]} Nxf5 {[%clk 00:14:57]} {[%emt 00:00:19]} 36. Nxf5
{[%clk 00:19:57]} {[%emt 00:00:32]} Qxf5 {[%clk 00:15:20]} {[%emt 00:00:07]} 37.
Bc6 {[%clk 00:19:55]} {[%emt 00:00:32]} Qg4 {[%clk 00:14:00]} {[%emt 00:01:47]}
38. Qd5 {[%clk 00:19:33]} {[%emt 00:00:56]} Qxh5 {[%clk 00:13:41]} {[%emt
00:00:49]} 39. a5 {[%clk 00:19:44]} {[%emt 00:00:18]} Qe2 {[%clk 00:13:16]}
{[%emt 00:00:53]} 40. a4 {[%clk 00:17:08]} {[%emt 00:03:08]} h5 {[%clk
00:13:37]} {[%emt 00:00:10]} 41. Qe4 {[%clk 00:17:06]} {[%emt 00:00:31]} Qb2
{[%clk 00:12:02]} {[%emt 00:02:01]} 42. Qg6 {[%clk 00:17:19]} {[%emt 00:00:20]}
Qe2 {[%clk 00:11:55]} {[%emt 00:00:39]} 43. Be4 {[%clk 00:16:51]} {[%emt
00:00:57]} Kg8 {[%clk 00:11:37]} {[%emt 00:00:48]} 44. Bd5+ {[%clk 00:17:11]}
{[%emt 00:00:10]} Kh8 {[%clk 00:11:52]} {[%emt 00:00:15]} 45. Qxg5 {[%clk
00:16:27]} {[%emt 00:01:14]} Rf6 {[%clk 00:12:07]} {[%emt 00:00:15]} 46. a6
{[%clk 00:15:40]} {[%emt 00:01:17]} e4 {[%clk 00:08:52]} {[%emt 00:03:45]} 47.
Qe3 {[%clk 00:15:10]} {[%emt 00:00:59]} 1-0

[Event "Latvijas 2022. gada jauniešu čempionāta fināls"]
[Site "Riga, Latvia"]
[Date "2022.06.14"]
[Round "5.24"]
[White "Krastins, Arturs"]
[Black "Lahs, Einars"]
[Result "0-1"]
[TimeControl "3600+30"]
[WhiteElo "1506"]
[BlackElo "1675"]

1. d4 {[%clk 01:00:59]} {[%emt 00:00:39]} d5 {[%clk 01:00:44]} {[%emt
00:00:18]} 2. Bf4 {[%clk 01:01:25]} {[%emt 00:00:04]} Nf6 {[%clk 01:00:41]}
{[%emt 00:00:32]} 3. e3 {[%clk 01:01:47]} {[%emt 00:00:08]} e6 {[%clk
01:01:07]} {[%emt 00:00:05]} 4. Nf3 {[%clk 01:01:52]} {[%emt 00:00:24]} Bd6
{[%clk 01:01:29]} {[%emt 00:00:08]} 5. Bg3 {[%clk 01:02:00]} {[%emt 00:00:22]}
O-O {[%clk 01:01:43]} {[%emt 00:00:16]} 6. Nbd2 {[%clk 01:02:19]} {[%emt
00:00:10]} b6 {[%clk 01:02:04]} {[%emt 00:00:11]} 7. Bd3 {[%clk 01:01:08]}
{[%emt 00:01:38]} Bb7 {[%clk 01:02:19]} {[%emt 00:00:17]} 8. Ne5 {[%clk
01:00:12]} {[%emt 00:01:26]} c5 {[%clk 01:02:19]} {[%emt 00:00:30]} 9. c3
{[%clk 01:00:26]} {[%emt 00:00:17]} Qc7 {[%clk 01:01:21]} {[%emt 00:01:26]} 10.
Qb1 {[%clk 00:58:39]} {[%emt 00:02:18]} Nc6 {[%clk 00:57:16]} {[%emt 00:04:35]}
11. f4 {[%clk 00:57:56]} {[%emt 00:01:13]} cxd4 {[%clk 00:55:12]} {[%emt
00:02:34]} 12. exd4 {[%clk 00:58:10]} {[%emt 00:00:16]} h6 {[%clk 00:53:15]}
{[%emt 00:02:27]} 13. Qd1 {[%clk 00:55:44]} {[%emt 00:02:55]} Ne4 {[%clk
00:42:23]} {[%emt 00:11:23]} 14. Nxe4 {[%clk 00:51:59]} {[%emt 00:04:14]} dxe4
{[%clk 00:42:51]} {[%emt 00:00:04]} 15. Bxe4 {[%clk 00:51:53]} {[%emt
00:00:36]} Nxe5 {[%clk 00:42:44]} {[%emt 00:00:37]} 16. Bxb7 {[%clk 00:51:41]}
{[%emt 00:00:42]} Qxb7 {[%clk 00:42:30]} {[%emt 00:00:43]} 17. fxe5 {[%clk
00:51:35]} {[%emt 00:00:36]} Qxg2 {[%clk 00:41:56]} {[%emt 00:01:04]} 18. Rf1
{[%clk 00:51:55]} {[%emt 00:00:09]} Be7 {[%clk 00:39:16]} {[%emt 00:03:07]} 19.
Qe2 {[%clk 00:52:04]} {[%emt 00:00:24]} Qxe2+ {[%clk 00:35:15]} {[%emt
00:04:32]} 20. Kxe2 {[%clk 00:52:33]} {[%emt 00:00:02]} b5 {[%clk 00:35:10]}
{[%emt 00:00:34]} 21. a3 {[%clk 00:52:35]} {[%emt 00:00:27]} a5 {[%clk
00:34:54]} {[%emt 00:00:47]} 22. Kd3 {[%clk 00:50:36]} {[%emt 00:02:28]} Rac8
{[%clk 00:31:49]} {[%emt 00:03:36]} 23. a4 {[%clk 00:48:58]} {[%emt 00:02:08]}
b4 {[%clk 00:31:56]} {[%emt 00:00:23]} 24. c4 {[%clk 00:47:37]} {[%emt
00:01:50]} Rfd8 {[%clk 00:32:01]} {[%emt 00:00:26]} 25. b3 {[%clk 00:47:03]}
{[%emt 00:01:04]} f6 {[%clk 00:28:12]} {[%emt 00:04:19]} 26. Rad1 {[%clk
00:43:18]} {[%emt 00:04:14]} f5 {[%emt 00:11:29]} 27. Kc2 {[%clk 00:41:24]}
{[%emt 00:00:11]} g5 {[%clk 00:13:49]} {[%emt 00:06:08]} 28. Kb2 {[%clk
00:39:06]} {[%emt 00:02:45]} f4 {[%clk 00:12:43]} {[%emt 00:01:39]} 29. Bf2
{[%clk 00:37:21]} {[%emt 00:02:11]} Kf7 {[%clk 00:11:00]} {[%emt 00:02:17]} 30.
h4 {[%clk 00:30:12]} {[%emt 00:07:39]} Kg6 {[%clk 00:08:19]} {[%emt 00:03:10]}
31. d5 {[%clk 00:29:59]} {[%emt 00:00:44]} Bc5 {[%clk 00:08:20]} {[%emt
00:00:29]} 32. d6 {[%clk 00:29:52]} {[%emt 00:00:37]} Kf5 {[%clk 00:07:41]}
{[%emt 00:01:08]} 33. hxg5 {[%clk 00:26:38]} {[%emt 00:03:46]} hxg5 {[%clk
00:07:54]} {[%emt 00:00:16]} 34. d7 {[%clk 00:25:24]} {[%emt 00:01:43]} Rc7
{[%clk 00:08:07]} {[%emt 00:00:17]} 35. Bxc5 {[%clk 00:22:31]} {[%emt
00:03:24]} Rxc5 {[%clk 00:08:36]} {[%emt 00:00:02]} 36. Rh1 {[%clk 00:21:51]}
{[%emt 00:01:06]} Kxe5 {[%clk 00:06:36]} {[%emt 00:02:33]} 37. Rh7 {[%clk
00:17:57]} {[%emt 00:04:23]} Kf5 {[%clk 00:03:20]} {[%emt 00:03:42]} 38. Rdh1
{[%clk 00:14:37]} {[%emt 00:03:55]} Rc7 {[%clk 00:02:45]} {[%emt 00:01:05]} 39.
Rf7+ {[%clk 00:15:03]} {[%emt 00:00:04]} Ke4 {[%clk 00:01:32]} {[%emt
00:01:41]} 40. Rhh7 {[%clk 00:14:21]} {[%emt 00:01:13]} g4 {[%clk 00:01:21]}
{[%emt 00:00:42]} 41. Re7 {[%clk 00:14:41]} {[%emt 00:00:10]} e5 {[%clk
00:01:22]} {[%emt 00:00:29]} 42. c5 {[%clk 00:14:36]} {[%emt 00:00:36]} Kd5
{[%clk 00:00:54]} {[%emt 00:00:57]} 43. Rh5 {[%clk 00:11:50]} {[%emt 00:03:16]}
Rcxd7 {[%clk 00:01:16]} {[%emt 00:00:08]} 44. Rhxe5+ {[%clk 00:12:00]} {[%emt
00:00:20]} Kc6 {[%clk 00:01:22]} {[%emt 00:00:23]} 45. Rxd7 {[%clk 00:11:20]}
{[%emt 00:01:11]} Rxd7 {[%clk 00:01:50]} {[%emt 00:00:02]} 46. Kc2 {[%clk
00:11:35]} {[%emt 00:00:14]} Rd5 {[%clk 00:01:35]} {[%emt 00:00:46]} 47. Re4
{[%clk 00:11:48]} {[%emt 00:00:17]} Rxc5+ {[%clk 00:01:20]} {[%emt 00:00:46]}
48. Kd3 {[%clk 00:11:21]} {[%emt 00:00:57]} Rf5 {[%clk 00:01:18]} {[%emt
00:00:31]} 49. Rc4+ {[%clk 00:11:35]} {[%emt 00:00:15]} Kd5 {[%clk 00:00:47]}
{[%emt 00:01:00]} 50. Rd4+ {[%clk 00:11:58]} {[%emt 00:00:08]} Ke6 {[%clk
00:00:59]} {[%emt 00:00:18]} 51. Ke4 {[%clk 00:12:07]} {[%emt 00:00:21]} Kf6
{[%clk 00:01:15]} {[%emt 00:00:15]} 52. Rd8 {[%clk 00:12:16]} {[%emt 00:00:21]}
Rg5 {[%clk 00:00:32]} {[%emt 00:01:13]} 53. Kxf4 {[%clk 00:12:26]} {[%emt
00:00:19]} Rg7 {[%clk 00:00:32]} {[%emt 00:00:30]} 54. Rd6+ {[%clk 00:12:36]}
{[%emt 00:00:19]} Ke7 {[%clk 00:00:48]} {[%emt 00:00:15]} 55. Rd3 {[%clk
00:12:57]} {[%emt 00:00:09]} Ke6 {[%clk 00:00:52]} {[%emt 00:00:25]} 56. Rg3
{[%clk 00:12:25]} {[%emt 00:01:03]} Kd5 {[%clk 00:00:41]} {[%emt 00:00:42]} 57.
Rd3+ {[%clk 00:12:47]} {[%emt 00:00:07]} Kc5 {[%clk 00:00:48]} {[%emt
00:00:24]} 58. Kg3 {[%clk 00:12:49]} {[%emt 00:00:27]} Rg6 {[%clk 00:00:59]}
{[%emt 00:00:19]} 59. Rd1 {[%clk 00:12:42]} {[%emt 00:00:35]} Re6 {[%clk
00:00:36]} {[%emt 00:00:56]} 60. Rc1+ {[%clk 00:08:12]} {[%emt 00:05:01]} Kb6
{[%clk 00:01:04]} {[%emt 00:00:01]} 61. Kxg4 {[%clk 00:08:24]} {[%emt
00:00:17]} Re3 {[%clk 00:01:26]} {[%emt 00:00:09]} 62. Rb1 {[%clk 00:08:47]}
{[%emt 00:00:08]} Kc5 {[%clk 00:01:39]} {[%emt 00:00:16]} 63. Kf4 {[%clk
00:08:55]} {[%emt 00:00:22]} Kd4 {[%clk 00:00:45]} {[%emt 00:01:25]} 64. Rd1+
{[%clk 00:09:05]} {[%emt 00:00:19]} Rd3 {[%clk 00:01:13]} {[%emt 00:00:03]} 65.
Re1 {[%clk 00:09:07]} {[%emt 00:00:27]} Rxb3 {[%clk 00:01:27]} {[%emt
00:00:16]} 66. Re8 {[%clk 00:08:59]} {[%emt 00:00:36]} Ra3 {[%clk 00:01:34]}
{[%emt 00:00:25]} 67. Rd8+ {[%clk 00:09:23]} {[%emt 00:00:06]} Kc3 {[%clk
00:01:49]} {[%emt 00:00:15]} 68. Ke3 {[%clk 00:09:17]} {[%emt 00:00:35]} Rxa4
{[%clk 00:01:02]} {[%emt 00:01:18]} 69. Rc8+ {[%clk 00:09:39]} {[%emt
00:00:08]} Kb2 {[%clk 00:01:19]} {[%emt 00:00:12]} 70. Kd2 {[%clk 00:10:00]}
{[%emt 00:00:10]} Ra2 {[%clk 00:01:31]} {[%emt 00:00:17]} 71. Kd1 {[%clk
00:10:06]} {[%emt 00:00:23]} Kb3 {[%clk 00:01:31]} {[%emt 00:00:31]} 72. Kc1
{[%clk 00:10:22]} {[%emt 00:00:14]} a4 {[%clk 00:01:03]} {[%emt 00:00:59]} 73.
Kb1 {[%clk 00:10:07]} {[%emt 00:00:44]} a3 {[%clk 00:00:58]} {[%emt 00:00:37]}
74. Rh8 {[%clk 00:08:28]} {[%emt 00:01:53]} Rb2+ {[%clk 00:01:12]} {[%emt
00:00:31]} 75. Ka1 {[%clk 00:08:43]} {[%emt 00:00:12]} Rc2 {[%clk 00:01:00]}
{[%emt 00:00:44]} 76. Rh1 {[%clk 00:08:55]} {[%emt 00:00:19]} Rd2 {[%clk
00:00:33]} {[%emt 00:00:57]} 77. Rb1+ {[%clk 00:04:05]} {[%emt 00:05:14]} Kc3
{[%clk 00:00:34]} {[%emt 00:00:35]} 78. Rc1+ {[%clk 00:02:54]} {[%emt
00:01:34]} Kb3 {[%clk 00:00:43]} {[%emt 00:00:28]} 79. Rb1+ {[%clk 00:03:18]}
{[%emt 00:00:06]} Ka4 {[%clk 00:01:06]} {[%emt 00:00:06]} 80. Rh1 {[%clk
00:03:37]} {[%emt 00:00:09]} Rd4 {[%clk 00:01:28]} {[%emt 00:00:11]} 81. Kb1
{[%clk 00:03:46]} {[%emt 00:00:17]} b3 {[%clk 00:01:13]} {[%emt 00:00:49]} 82.
Rg1 {[%clk 00:02:39]} {[%emt 00:01:34]} a2+ {[%clk 00:01:19]} {[%emt 00:00:27]}
83. Kb2 {[%clk 00:02:24]} {[%emt 00:00:42]} Rd2+ {[%clk 00:01:33]} {[%emt
00:00:19]} 84. Kc3 {[%clk 00:02:20]} {[%emt 00:00:34]} b2 {[%clk 00:01:43]}
{[%emt 00:00:20]} 0-1

[Event "Latvijas 2022. gada jauniešu čempionāta fināls"]
[Site "Riga, Latvia"]
[Date "2022.06.15"]
[Round "6.1"]
[White "Vingris, Mikelis"]
[Black "Harlamovs, Daniils"]
[Result "1-0"]
[TimeControl "3600+30"]
[WhiteElo "1781"]
[BlackElo "1407"]

1. e4 {[%clk 01:00:57]} {[%emt 00:00:02]} c6 {[%clk 01:00:57]} {[%emt
00:00:04]} 2. d4 {[%clk 01:01:23]} {[%emt 00:00:04]} d5 {[%clk 01:01:23]}
{[%emt 00:00:04]} 3. e5 {[%clk 01:01:50]} {[%emt 00:00:03]} Bf5 {[%clk
01:01:43]} {[%emt 00:00:09]} 4. Nf3 {[%clk 01:02:16]} {[%emt 00:00:04]} e6
{[%clk 01:01:51]} {[%emt 00:00:22]} 5. Be2 {[%clk 01:02:42]} {[%emt 00:00:04]}
c5 {[%clk 01:01:59]} {[%emt 00:00:23]} 6. Be3 {[%clk 01:03:06]} {[%emt
00:00:05]} Nc6 {[%clk 01:01:56]} {[%emt 00:00:34]} 7. Nbd2 {[%clk 01:03:23]}
{[%emt 00:00:12]} cxd4 {[%clk 01:01:36]} {[%emt 00:00:51]} 8. Nxd4 {[%clk
01:03:44]} {[%emt 00:00:09]} Nge7 {[%clk 00:58:08]} {[%emt 00:03:57]} 9. N2f3
{[%clk 01:03:36]} {[%emt 00:00:38]} a6 {[%clk 00:56:15]} {[%emt 00:02:23]} 10.
O-O {[%clk 00:58:23]} {[%emt 00:05:42]} Qc7 {[%clk 00:54:14]} {[%emt 00:02:33]}
11. c3 {[%clk 00:47:39]} {[%emt 00:11:14]} Nxe5 {[%clk 00:48:11]} {[%emt
00:06:32]} 12. Nxe5 {[%clk 00:45:39]} {[%emt 00:02:30]} Qxe5 {[%clk 00:48:37]}
{[%emt 00:00:05]} 13. Qa4+ {[%clk 00:45:42]} {[%emt 00:00:27]} Kd8 {[%clk
00:48:23]} {[%emt 00:00:44]} 14. Bf4 {[%clk 00:41:39]} {[%emt 00:04:32]} Qf6
{[%clk 00:48:05]} {[%emt 00:00:47]} 15. Qa5+ {[%clk 00:41:11]} {[%emt
00:00:59]} Ke8 {[%clk 00:48:31]} {[%emt 00:00:04]} 16. Bb5+ {[%emt 00:00:59]}
1-0